fUST/lending_fUST_20260625
["ID","MTS","AMOUNT","RATE_DAILY","PERIOD"]
[426422006,1782371440000,-151.0,0.000187,2]
[426422005,1782371440000,-151.0,0.000187,2]
[426422008,1782371440000,-500.0,0.00018794,2]
[426422014,1782371440000,-500.0,0.00018794,2]
[426422012,1782371440000,-500.0,0.00018794,2]
[426422015,1782371440000,-500.0,0.00018794,2]
[426422013,1782371440000,-500.0,0.00018794,2]
[426422018,1782371440000,-500.0,0.00018794,2]
[426422017,1782371440000,-500.0,0.00018794,2]
[426422019,1782371440000,-500.0,0.00018794,2]
[426422016,1782371440000,-500.0,0.00018794,2]
[426422021,1782371440000,-500.0,0.00018794,2]
[426422022,1782371440000,-500.0,0.00018794,2]
[426422020,1782371440000,-230.37797475,0.00018794,2]
[426422023,1782371440000,-256.87967188,0.00018794,2]
[426422027,1782371440000,-151.0,0.000188,2]
[426422025,1782371440000,-151.0,0.000188,2]
[426422024,1782371440000,-151.0,0.000188,2]
[426422026,1782371440000,-151.0,0.000188,2]
[426422028,1782371440000,-151.0,0.000188,2]
[426422032,1782371440000,-151.0,0.000188,2]
[426421968,1782371440000,-533.03703342,0.00018517,2]
[426422002,1782371440000,-1425.2210942,0.0001869,2]
[426422004,1782371440000,-500.00208313,0.00018693,2]
[426422030,1782371440000,-151.0,0.000188,2]
[426422001,1782371440000,-1497.7918534,0.00018682,2]
[426422000,1782371440000,-889.91,0.00018595,2]
[426421972,1782371440000,-500.0,0.00018525,2]
[426421973,1782371440000,-500.0,0.00018525,2]
[426421975,1782371440000,-500.0,0.00018525,2]
[426421976,1782371440000,-500.0,0.00018525,2]
[426421971,1782371440000,-500.0,0.00018525,2]
[426421978,1782371440000,-220.24342299,0.00018525,2]
[426421983,1782371440000,-500.0,0.00018525,2]
[426421981,1782371440000,-500.0,0.00018525,2]
[426421980,1782371440000,-500.0,0.00018525,2]
[426421979,1782371440000,-500.0,0.00018525,2]
[426421982,1782371440000,-502.93837888,0.00018525,2]
[426421984,1782371440000,-500.0,0.00018526,2]
[426421985,1782371440000,-6106.43834337,0.00018585,2]
[426421974,1782371440000,-500.0,0.00018525,2]
[426421989,1782371440000,-500.0,0.00018591,2]
[426421999,1782371440000,-487.0,0.00018595,2]
[426421998,1782371440000,-359.50501812,0.00018594,2]
[426421997,1782371440000,-500.0,0.00018594,2]
[426421995,1782371440000,-500.0,0.00018594,2]
[426421986,1782371440000,-500.0,0.00018591,2]
[426421994,1782371440000,-500.0,0.00018594,2]
[426421996,1782371440000,-500.0,0.00018594,2]
[426421992,1782371440000,-501.47540124,0.00018594,2]
[426421990,1782371440000,-500.0,0.00018593,2]
[426421987,1782371440000,-500.0,0.00018591,2]
[426421991,1782371440000,-500.0,0.00018593,2]
[426421988,1782371440000,-500.0,0.00018591,2]
[426421993,1782371440000,-500.0,0.00018594,2]
[426422079,1782371441000,-533.5,0.00021756,3]
[426422069,1782371441000,-1677.005413,0.00020857,2]
[426422073,1782371441000,-1617.88324525,0.00021,2]
[426422072,1782371441000,-500.0,0.00020992,2]
[426422063,1782371441000,-1677.005413,0.00020077,2]
[426422071,1782371441000,-448.22075541,0.00020858,6]
[426422068,1782371441000,-500.0,0.00020718,2]
[426422064,1782371441000,-500.0,0.0002017,2]
[426422066,1782371441000,-764.3362623,0.00020717,2]
[426422065,1782371441000,-500.0,0.00020444,2]
[426422070,1782371441000,-576.66994664,0.00020858,6]
[426422074,1782371441000,-500.0,0.00021266,2]
[426422087,1782371441000,-448.158,0.00023917,2]
[426422077,1782371441000,-355.65,0.00021756,3]
[426422080,1782371441000,-500.0,0.00021814,2]
[426422075,1782371441000,-500.0,0.0002154,2]
[426422081,1782371441000,-506.69958302,0.00022088,2]
[426422078,1782371441000,-177.83,0.00021756,3]
[426422083,1782371441000,-711.3,0.00023126,3]
[426422084,1782371441000,-355.66,0.00023126,3]
[426422085,1782371441000,-153.61510959,0.00023669,5]
[426422082,1782371441000,-1677.005413,0.00022416,2]
[426422086,1782371441000,-221.24192006,0.00023669,5]
[426422092,1782371441000,-159.94,0.00024099,2]
[426422089,1782371441000,-152.25695041,0.00023991,5]
[426422062,1782371441000,-1507.40238882,0.0002,2]
[426422076,1782371441000,-1677.005413,0.00021636,2]
[426422067,1782371441000,-594.0857138,0.00020717,2]
[426422047,1782371441000,-1000.0,0.00019178,2]
[426422060,1782371441000,-500.0,0.00019896,2]
[426422033,1782371441000,-151.0,0.000188,2]
[426422034,1782371441000,-151.0,0.000188,2]
[426422036,1782371441000,-500.0,0.000188,2]
[426422035,1782371441000,-151.0,0.000188,2]
[426422040,1782371441000,-1000.0,0.00019178,2]
[426422041,1782371441000,-1000.0,0.00019178,2]
[426422038,1782371441000,-500.0,0.00019074,2]
[426422039,1782371441000,-1000.0,0.00019178,2]
[426422037,1782371441000,-340.0,0.00018973,2]
[426422042,1782371441000,-1000.0,0.00019178,2]
[426422044,1782371441000,-1000.0,0.00019178,2]
[426422045,1782371441000,-1000.0,0.00019178,2]
[426422043,1782371441000,-1000.0,0.00019178,2]
[426422046,1782371441000,-1000.0,0.00019178,2]
[426422049,1782371441000,-1677.005413,0.00019298,2]
[426422050,1782371441000,-500.0,0.00019348,2]
[426422048,1782371441000,-1000.0,0.00019178,2]
[426422055,1782371441000,-300.0,0.00019589,3]
[426422052,1782371441000,-429.93914754,0.00019395,2]
[426422051,1782371441000,-238.85508197,0.00019395,2]
[426422054,1782371441000,-3172.31797221,0.00019497,2]
[426422053,1782371441000,-334.17321401,0.00019395,2]
[426422056,1782371441000,-500.0,0.00019622,2]
[426422061,1782371441000,-500.0,0.0002,2]
[426422058,1782371441000,-300.0,0.00019678,2]
[426422057,1782371441000,-300.0,0.00019678,2]
[426422094,1782371441000,-958.0,0.00024238,2]
[426422059,1782371441000,-213.8103716,0.000198,2]
[426422088,1782371441000,-186.0,0.00023917,2]
[426422123,1782371441000,-10000.0,0.0003,2]
[426422091,1782371441000,-848.24235856,0.00024,2]
[426422126,1782371441000,-151.0,0.00030137,6]
[426422128,1782371441000,-300.0,0.00030137,5]
[426422127,1782371441000,-1936.40727719,0.00030137,30]
[426422131,1782371441000,-163.6,0.000309,120]
[426422129,1782371441000,-300.0,0.00030137,2]
[426422133,1782371441000,-184.75459489,0.000309,120]
[426422130,1782371441000,-500.0,0.00030347,11]
[426422132,1782371441000,-221.70551386,0.000309,120]
[426422134,1782371441000,-221.70551386,0.000318,120]
[426422136,1782371441000,-172.0,0.00031969,14]
[426422138,1782371441000,-221.70551386,0.000328,120]
[426422135,1782371441000,-163.6,0.000319,120]
[426422137,1782371441000,-413.05637469,0.00032587,31]
[426422140,1782371441000,-163.6,0.000329,120]
[426422143,1782371441000,-158.51251927,0.000332,117]
[426422145,1782371441000,-221.70551386,0.000338,120]
[426422144,1782371441000,-175.0,0.00033568,30]
[426422141,1782371441000,-445.0,0.00032917,2]
[426422142,1782371441000,-4784.35169722,0.00032962,2]
[426422148,1782371441000,-188.44269937,0.00034023,2]
[426422149,1782371441000,-162.77555907,0.00034023,2]
[426422146,1782371441000,-163.6,0.000339,120]
[426422151,1782371441000,-174.45477957,0.00034025,2]
[426422152,1782371441000,-164.77502666,0.00034025,2]
[426422147,1782371441000,-154.39284622,0.00034022,2]
[426422150,1782371441000,-154.93248466,0.00034025,2]
[426422090,1782371441000,-274.071,0.00023991,5]
[426422125,1782371441000,-172.0,0.0003,14]
[426422121,1782371441000,-198.73957928,0.00029741,7]
[426422139,1782371441000,-300.0,0.00032877,6]
[426422122,1782371441000,-445.0,0.00029917,2]
[426422124,1782371441000,-10000.0,0.0003,2]
[426422099,1782371441000,-445.0,0.00026917,2]
[426422098,1782371441000,-160.45,0.00025217,2]
[426422095,1782371441000,-3883.52473819,0.0002465,2]
[426422096,1782371441000,-597.577496,0.00025148,2]
[426422097,1782371441000,-153.61510959,0.00025155,5]
[426422100,1782371441000,-160.0,0.00027065,2]
[426422103,1782371441000,-160.0,0.00027067,2]
[426422102,1782371441000,-160.0,0.00027066,2]
[426422101,1782371441000,-160.0,0.00027065,2]
[426422105,1782371441000,-277.10451597,0.000279,5]
[426422104,1782371441000,-270.26,0.00027869,5]
[426422106,1782371441000,-208.75,0.00028,21]
[426422108,1782371441000,-152.0,0.0002926,2]
[426422093,1782371441000,-1119.603,0.00024238,2]
[426422115,1782371441000,-235.467147,0.000294,2]
[426422109,1782371441000,-152.0,0.0002926,2]
[426422110,1782371441000,-152.54128174,0.0002926,2]
[426422112,1782371441000,-152.0,0.0002926,2]
[426422111,1782371441000,-152.0,0.0002926,2]
[426422116,1782371441000,-223.794255,0.000294,2]
[426422113,1782371441000,-500.0731944,0.0002926,2]
[426422114,1782371441000,-161.35815447,0.0002926,2]
[426422117,1782371441000,-204.071528,0.000294,2]
[426422107,1782371441000,-213.35354073,0.0002926,2]
[426422118,1782371441000,-1189.475276,0.000294,2]
[426422119,1782371441000,-222.2068,0.00029717,2]
[426422120,1782371441000,-182.0,0.00029741,7]
[426422193,1782371442000,-328.73499518,0.00035086,2]
[426422194,1782371442000,-188.23113884,0.00035086,2]
[426422188,1782371442000,-350.53140254,0.00035086,2]
[426422201,1782371442000,-310.17135628,0.00035086,2]
[426422192,1782371442000,-155.37438653,0.00035086,2]
[426422190,1782371442000,-150.75680391,0.00035086,2]
[426422185,1782371442000,-328.11519603,0.00035044,2]
[426422189,1782371442000,-328.15364585,0.00035086,2]
[426422184,1782371442000,-346.57317411,0.00035044,2]
[426422187,1782371442000,-440.8138142,0.00035086,2]
[426422186,1782371442000,-189.41018865,0.00035044,2]
[426422195,1782371442000,-326.97792457,0.00035086,2]
[426422191,1782371442000,-422.99838454,0.00035086,2]
[426422198,1782371442000,-437.37748141,0.00035086,2]
[426422203,1782371442000,-493.45642585,0.00035086,2]
[426422200,1782371442000,-152.75561292,0.00035086,2]
[426422196,1782371442000,-239.44689058,0.00035086,2]
[426422197,1782371442000,-435.21025787,0.00035086,2]
[426422207,1782371442000,-152.39,0.0003565,14]
[426422204,1782371442000,-356.07873393,0.00035134,2]
[426422205,1782371442000,-200.0,0.00035616,38]
[426422208,1782371442000,-378.8203773,0.00035668,2]
[426422206,1782371442000,-263.15,0.00035616,38]
[426422202,1782371442000,-316.62054128,0.00035086,2]
[426422212,1782371442000,-485.75866309,0.00035669,2]
[426422211,1782371442000,-190.06895904,0.00035669,2]
[426422209,1782371442000,-463.17853865,0.00035668,2]
[426422199,1782371442000,-318.60194292,0.00035086,2]
[426422183,1782371442000,-219.38877756,0.00035012,2]
[426422153,1782371442000,-188.87513698,0.00034025,2]
[426422179,1782371442000,-329.55005331,0.00035012,2]
[426422213,1782371442000,-488.32667722,0.00035669,2]
[426422156,1782371442000,-164.05759802,0.00034055,2]
[426422158,1782371442000,-175.26570127,0.00034096,2]
[426422154,1782371442000,-184.31508282,0.00034025,2]
[426422155,1782371442000,-173.28658706,0.00034055,2]
[426422159,1782371442000,-164.07682292,0.00034096,2]
[426422157,1782371442000,-220.4069071,0.00034096,2]
[426422160,1782371442000,-211.49919227,0.00034096,2]
[426422165,1782371442000,-159.30097146,0.00034096,2]
[426422161,1782371442000,-164.36749759,0.00034096,2]
[426422163,1782371442000,-217.60512893,0.00034096,2]
[426422162,1782371442000,-163.48896229,0.00034096,2]
[426422164,1782371442000,-218.6887407,0.00034096,2]
[426422182,1782371442000,-190.12552155,0.00035012,2]
[426422166,1782371442000,-155.08567814,0.00034096,2]
[426422167,1782371442000,-158.31027064,0.00034096,2]
[426422168,1782371442000,-657.94190114,0.00034096,2]
[426422174,1782371442000,-242.87933154,0.0003501,2]
[426422170,1782371442000,-163.6,0.000349,120]
[426422172,1782371442000,-308.78569243,0.00035009,2]
[426422176,1782371442000,-185.71630592,0.00035012,2]
[426422173,1782371442000,-376.88539873,0.0003501,2]
[426422175,1782371442000,-325.55111815,0.0003501,2]
[426422171,1782371442000,-426.7284719,0.00035,120]
[426422181,1782371442000,-368.63016564,0.00035012,2]
[426422178,1782371442000,-348.90955914,0.00035012,2]
[426422180,1782371442000,-377.75027396,0.00035012,2]
[426422177,1782371442000,-309.86496932,0.00035012,2]
[426422169,1782371442000,-178.03936697,0.00034142,2]
[426422210,1782371442000,-565.3280981,0.00035669,2]
[426422214,1782371442000,-574.07135696,0.00035669,2]
[426422218,1782371442000,-187.03405432,0.0003567,2]
[426422249,1782371442000,-398.96640216,0.00035795,2]
[426422248,1782371442000,-328.97095057,0.00035746,2]
[426422247,1782371442000,-474.93081193,0.00035746,2]
[426422254,1782371442000,-651.1022363,0.00036108,2]
[426422256,1782371442000,-557.14891777,0.00036109,2]
[426422255,1782371442000,-784.98937272,0.00036109,2]
[426422251,1782371442000,-617.57138487,0.00036107,2]
[426422252,1782371442000,-753.77079747,0.00036108,2]
[426422253,1782371442000,-728.63799463,0.00036108,2]
[426422258,1782371442000,-697.81911829,0.00036109,2]
[426422257,1782371442000,-619.72993863,0.00036109,2]
[426422261,1782371442000,-161.01488848,0.00036109,2]
[426422260,1782371442000,-374.06810864,0.00036109,2]
[426422262,1782371442000,-659.10010662,0.00036109,2]
[426422259,1782371442000,-208.47901146,0.00036109,2]
[426422263,1782371442000,-755.50054793,0.00036109,2]
[426422266,1782371442000,-479.97953448,0.00036109,2]
[426422268,1782371442000,-175.13070962,0.00036109,2]
[426422267,1782371442000,-658.16633268,0.00036109,2]
[426422265,1782371442000,-371.49586971,0.00036109,2]
[426422269,1782371442000,-407.62164178,0.00036142,2]
[426422264,1782371442000,-737.26033128,0.00036109,2]
[426422273,1782371442000,-175.71406705,0.00036142,2]
[426422270,1782371442000,-693.14634823,0.00036142,2]
[426422272,1782371442000,-198.05367481,0.00036142,2]
[426422275,1782371442000,-718.34067173,0.00036143,2]
[426422271,1782371442000,-656.23039207,0.00036142,2]
[426422250,1782371442000,-163.6,0.000359,120]
[426422246,1782371442000,-465.25703441,0.00035746,2]
[426422274,1782371442000,-406.12389991,0.00036142,2]
[426422243,1782371442000,-656.06622211,0.00035746,2]
[426422215,1782371442000,-371.43261185,0.0003567,2]
[426422219,1782371442000,-190.20504944,0.0003567,2]
[426422220,1782371442000,-494.32507997,0.0003567,2]
[426422217,1782371442000,-523.36433871,0.0003567,2]
[426422216,1782371442000,-464.79745398,0.0003567,2]
[426422221,1782371442000,-552.94524846,0.0003567,2]
[426422222,1782371442000,-239.98976724,0.0003567,2]
[426422223,1782371442000,-566.62541095,0.0003567,2]
[426422245,1782371442000,-305.51122583,0.00035746,2]
[426422225,1782371442000,-438.77755512,0.0003567,2]
[426422227,1782371442000,-519.85976117,0.00035703,2]
[426422228,1782371442000,-492.17279405,0.00035703,2]
[426422226,1782371442000,-376.63628045,0.0003567,2]
[426422230,1782371442000,-661.22072129,0.00035746,2]
[426422224,1782371442000,-380.25104309,0.0003567,2]
[426422233,1782371442000,-492.23046877,0.00035746,2]
[426422244,1782371442000,-477.90291437,0.00035746,2]
[426422231,1782371442000,-152.45511326,0.00035746,2]
[426422242,1782371442000,-652.8153868,0.00035746,2]
[426422241,1782371442000,-156.54623788,0.00035746,2]
[426422238,1782371442000,-376.46227769,0.00035746,2]
[426422239,1782371442000,-490.46688686,0.00035746,2]
[426422240,1782371442000,-478.89378115,0.00035746,2]
[426422237,1782371442000,-493.10249278,0.00035746,2]
[426422236,1782371442000,-310.74877305,0.00035746,2]
[426422235,1782371442000,-634.4975768,0.00035746,2]
[426422232,1782371442000,-525.79710381,0.00035746,2]
[426422229,1782371442000,-157.43337483,0.00035746,2]
[426422234,1782371442000,-301.51360781,0.00035746,2]
[426422323,1782371443000,-813.87779537,0.00036547,2]
[426422325,1782371443000,-872.27389786,0.00036548,2]
[426422324,1782371443000,-774.66242329,0.00036548,2]
[426422326,1782371443000,-921.5754141,0.00036548,2]
[426422327,1782371443000,-820.38411462,0.00036582,2]
[426422316,1782371443000,-164.48547528,0.00036186,2]
[426422318,1782371443000,-199.48320108,0.00036236,2]
[426422321,1782371443000,-771.96423108,0.00036545,2]
[426422320,1782371443000,-200.0,0.00036349,40]
[426422319,1782371443000,-160.11354444,0.00036236,2]
[426422328,1782371443000,-796.50485729,0.00036626,2]
[426422322,1782371443000,-942.21349684,0.00036547,2]
[426422344,1782371443000,-1080.74992352,0.00038191,2]
[426422329,1782371443000,-163.6,0.000369,120]
[426422332,1782371443000,-926.3570773,0.00037204,2]
[426422333,1782371443000,-1130.6561962,0.00037205,2]
[426422331,1782371443000,-200.0,0.0003704,43]
[426422335,1782371443000,-477.62333751,0.000375,120]
[426422334,1782371443000,-1046.72867743,0.00037207,2]
[426422338,1782371443000,-296.37695432,0.0003784,120]
[426422336,1782371443000,-150.24,0.0003765,14]
[426422337,1782371443000,-200.0,0.00037692,46]
[426422339,1782371443000,-163.6,0.000379,120]
[426422340,1782371443000,-154.58727463,0.000379,2]
[426422342,1782371443000,-44573.30655861,0.00038,2]
[426422317,1782371443000,-554.92419365,0.00036236,2]
[426422330,1782371443000,-172.0,0.00036924,30]
[426422312,1782371443000,-637.20388583,0.00036186,2]
[426422290,1782371443000,-153.61345188,0.00036186,2]
[426422314,1782371443000,-620.34271255,0.00036186,2]
[426422341,1782371443000,-300.22270516,0.00038,120]
[426422278,1782371443000,-154.34540576,0.00036145,2]
[426422280,1782371443000,-314.86674966,0.00036186,2]
[426422279,1782371443000,-155.068593,0.00036186,2]
[426422277,1782371443000,-396.03911864,0.00036145,2]
[426422276,1782371443000,-175.03931736,0.00036145,2]
[426422282,1782371443000,-178.59395779,0.00036186,2]
[426422281,1782371443000,-881.62762839,0.00036186,2]
[426422283,1782371443000,-154.69000149,0.00036186,2]
[426422287,1782371443000,-176.40018511,0.00036186,2]
[426422285,1782371443000,-304.91022651,0.00036186,2]
[426422286,1782371443000,-701.06280508,0.00036186,2]
[426422284,1782371443000,-432.01461048,0.00036186,2]
[426422288,1782371443000,-177.98566493,0.00036186,2]
[426422289,1782371443000,-420.03465134,0.00036186,2]
[426422293,1782371443000,-158.98494075,0.00036186,2]
[426422292,1782371443000,-656.30729169,0.00036186,2]
[426422297,1782371443000,-415.65308613,0.00036186,2]
[426422295,1782371443000,-452.27041172,0.00036186,2]
[426422299,1782371443000,-657.46999037,0.00036186,2]
[426422301,1782371443000,-383.7102637,0.00036186,2]
[426422303,1782371443000,-564.69341653,0.00036186,2]
[426422307,1782371443000,-114.94792809,0.00036186,2]
[426422305,1782371443000,-385.07593921,0.00036186,2]
[426422311,1782371443000,-870.42051574,0.00036186,2]
[426422309,1782371443000,-42.70569479,0.00036186,2]
[426422310,1782371443000,-313.09247575,0.00036186,2]
[426422315,1782371443000,-633.24108257,0.00036186,2]
[426422345,1782371443000,-1241.38806653,0.00038194,2]
[426422382,1782371443000,-500.0,0.00040273,30]
[426422348,1782371443000,-200.0,0.00038306,50]
[426422376,1782371443000,-3152.8094,0.00040273,30]
[426422381,1782371443000,-500.0,0.00040273,30]
[426422378,1782371443000,-2678.6951,0.00040273,30]
[426422379,1782371443000,-432.44531688,0.00040273,30]
[426422383,1782371443000,-505.49978013,0.00040273,30]
[426422404,1782371443000,-500.0,0.00040273,30]
[426422385,1782371443000,-500.0,0.00040273,30]
[426422388,1782371443000,-500.0,0.00040273,30]
[426422384,1782371443000,-500.0,0.00040273,30]
[426422387,1782371443000,-407.96498697,0.00040273,30]
[426422386,1782371443000,-506.23918582,0.00040273,30]
[426422390,1782371443000,-500.0,0.00040273,30]
[426422393,1782371443000,-500.0,0.00040273,30]
[426422391,1782371443000,-500.0,0.00040273,30]
[426422392,1782371443000,-500.0,0.00040273,30]
[426422395,1782371443000,-500.0,0.00040273,30]
[426422394,1782371443000,-500.0,0.00040273,30]
[426422397,1782371443000,-517.92690301,0.00040273,30]
[426422399,1782371443000,-500.0,0.00040273,30]
[426422398,1782371443000,-500.0,0.00040273,30]
[426422396,1782371443000,-500.0,0.00040273,30]
[426422400,1782371443000,-500.0,0.00040273,30]
[426422401,1782371443000,-500.0,0.00040273,30]
[426422403,1782371443000,-500.0,0.00040273,30]
[426422405,1782371443000,-511.08244092,0.00040273,30]
[426422402,1782371443000,-600.32282655,0.00040273,30]
[426422343,1782371443000,-20069.36476642,0.00038,120]
[426422380,1782371443000,-500.0,0.00040273,30]
[426422377,1782371443000,-281.9887,0.00040273,30]
[426422389,1782371443000,-500.0,0.00040273,30]
[426422375,1782371443000,-3152.8094,0.00040273,30]
[426422346,1782371443000,-1221.183457,0.00038194,2]
[426422374,1782371443000,-543.41559898,0.000402,120]
[426422347,1782371443000,-158.25,0.000383,120]
[426422350,1782371443000,-504.364627,0.0003871,2]
[426422349,1782371443000,-3757.226878,0.0003871,2]
[426422352,1782371443000,-200.0,0.00038885,55]
[426422351,1782371443000,-158.25,0.000388,120]
[426422355,1782371443000,-175.45377698,0.00039,120]
[426422354,1782371443000,-543.41559898,0.00039,120]
[426422356,1782371443000,-154.58727462,0.00039122,2]
[426422358,1782371443000,-158.25,0.000393,120]
[426422361,1782371443000,-1200.0,0.00039451,120]
[426422357,1782371443000,-828.22166889,0.00039171,2]
[426422353,1782371443000,-163.6,0.000389,120]
[426422368,1782371443000,-163.6,0.000399,120]
[426422363,1782371443000,-1237.49428991,0.00039451,120]
[426422359,1782371443000,-200.0,0.00039432,61]
[426422360,1782371443000,-1200.0,0.00039451,120]
[426422365,1782371443000,-1235.14276973,0.00039672,2]
[426422364,1782371443000,-23494.6721439,0.000395,120]
[426422366,1782371443000,-1395.63823657,0.00039675,2]
[426422369,1782371443000,-200.0,0.00039947,68]
[426422370,1782371443000,-3540.01741048,0.0004,100]
[426422367,1782371443000,-158.25,0.000398,120]
[426422371,1782371443000,-24999.999999,0.0004,12]
[426422372,1782371443000,-477.91557858,0.0004,120]
[426422373,1782371443000,-150.31,0.00040033,14]
[426422362,1782371443000,-1200.0,0.00039451,120]
[426422430,1782371444000,-526.30378412,0.00040273,30]
[426422435,1782371444000,-500.0,0.00040273,30]
[426422424,1782371444000,-500.0,0.00040273,30]
[426422423,1782371444000,-507.37073995,0.00040273,30]
[426422427,1782371444000,-500.0,0.00040273,30]
[426422428,1782371444000,-500.0,0.00040273,30]
[426422437,1782371444000,-529.01131132,0.00040273,30]
[426422433,1782371444000,-383.73504426,0.00040273,30]
[426422431,1782371444000,-500.0,0.00040273,30]
[426422432,1782371444000,-500.0,0.00040273,30]
[426422436,1782371444000,-500.0,0.00040273,30]
[426422439,1782371444000,-546.17739135,0.00040273,30]
[426422425,1782371444000,-500.0,0.00040273,30]
[426422429,1782371444000,-500.0,0.00040273,30]
[426422426,1782371444000,-323.96521233,0.00040273,30]
[426422411,1782371444000,-500.0,0.00040273,30]
[426422422,1782371444000,-508.27274745,0.00040273,30]
[426422434,1782371444000,-500.0,0.00040273,30]
[426422406,1782371444000,-500.0,0.00040273,30]
[426422407,1782371444000,-500.0,0.00040273,30]
[426422408,1782371444000,-500.0,0.00040273,30]
[426422412,1782371444000,-500.0,0.00040273,30]
[426422410,1782371444000,-500.0,0.00040273,30]
[426422413,1782371444000,-606.69416844,0.00040273,30]
[426422409,1782371444000,-521.37212704,0.00040273,30]
[426422414,1782371444000,-500.0,0.00040273,30]
[426422415,1782371444000,-524.29627847,0.00040273,30]
[426422416,1782371444000,-536.43693418,0.00040273,30]
[426422417,1782371444000,-503.14267949,0.00040273,30]
[426422418,1782371444000,-505.96901484,0.00040273,30]
[426422419,1782371444000,-500.0,0.00040273,30]
[426422420,1782371444000,-500.0,0.00040273,30]
[426422421,1782371444000,-500.0,0.00040273,30]
[426422440,1782371444000,-500.0,0.00040273,30]
[426422448,1782371444000,-500.0,0.00040273,30]
[426422446,1782371444000,-518.77976826,0.00040273,30]
[426422462,1782371444000,-500.0,0.00040273,30]
[426422463,1782371444000,-311.62974707,0.00040273,30]
[426422461,1782371444000,-500.0,0.00040273,30]
[426422464,1782371444000,-500.0,0.00040273,30]
[426422465,1782371444000,-500.0,0.00040273,30]
[426422468,1782371444000,-500.0,0.00040273,30]
[426422466,1782371444000,-500.0,0.00040273,30]
[426422467,1782371444000,-500.0,0.00040273,30]
[426422469,1782371444000,-500.0,0.00040273,30]
[426422473,1782371444000,-500.0,0.00040273,30]
[426422472,1782371444000,-500.0,0.00040273,30]
[426422475,1782371444000,-573.27983426,0.00040273,30]
[426422474,1782371444000,-500.0,0.00040273,30]
[426422438,1782371444000,-500.0,0.00040273,30]
[426422470,1782371444000,-500.0,0.00040273,30]
[426422459,1782371444000,-500.0,0.00040273,30]
[426422471,1782371444000,-500.0,0.00040273,30]
[426422456,1782371444000,-500.0,0.00040273,30]
[426422441,1782371444000,-500.0,0.00040273,30]
[426422460,1782371444000,-500.0,0.00040273,30]
[426422442,1782371444000,-500.0,0.00040273,30]
[426422443,1782371444000,-500.0,0.00040273,30]
[426422445,1782371444000,-500.0,0.00040273,30]
[426422444,1782371444000,-500.0,0.00040273,30]
[426422451,1782371444000,-500.0,0.00040273,30]
[426422452,1782371444000,-500.0,0.00040273,30]
[426422453,1782371444000,-514.35499775,0.00040273,30]
[426422447,1782371444000,-296.92236932,0.00040273,30]
[426422450,1782371444000,-500.0,0.00040273,30]
[426422455,1782371444000,-500.0,0.00040273,30]
[426422458,1782371444000,-532.40897132,0.00040273,30]
[426422457,1782371444000,-500.0,0.00040273,30]
[426422454,1782371444000,-500.0,0.00040273,30]
[426422449,1782371444000,-500.0,0.00040273,30]
[426422498,1782371447000,-500.0,0.00040273,30]
[426422504,1782371447000,-500.0,0.00040273,30]
[426422503,1782371447000,-500.0,0.00040273,30]
[426422505,1782371447000,-500.0,0.00040273,30]
[426422517,1782371447000,-526.79435364,0.00040273,30]
[426422507,1782371447000,-500.0,0.00040273,30]
[426422506,1782371447000,-500.0,0.00040273,30]
[426422514,1782371447000,-500.0,0.00040273,30]
[426422508,1782371447000,-500.0,0.00040273,30]
[426422512,1782371447000,-189.88165081,0.00040273,30]
[426422510,1782371447000,-500.0,0.00040273,30]
[426422515,1782371447000,-500.0,0.00040273,30]